[Event "7th Sharjah Challengers 2024"]
[Site "Sharjah"]
[Date "2024.05.15"]
[Round "2.1"]
[White "Pang, Tao"]
[Black "Hakobyan, Erik"]
[Result "1/2-1/2"]
[ECO "A28"]
[WhiteElo "2496"]
[BlackElo "2340"]
[Annotator "RC"]
[PlyCount "109"]
[EventDate "2024.05.13"]
[EventType "swiss"]
[EventCountry "UAE"]
[SourceTitle "playchess.com"]
[Source "ChessBase"]
[SourceQuality "1"]
[TimeControl "5400+30"]

1. c4 {[%emt 0:00:06]} Nf6 {[%emt 0:00:33]} 2. Nc3 {[%emt 0:00:40]} e5 {[%emt 0:00:10]} 3. Nf3 {[%emt 0:02:54]} Nc6 {[%emt 0:00:27]} 4. e4 {[%emt 0:01:20]} Bc5 {[%emt 0:02:28]} 5. Nxe5 {[%emt 0:01:44]} Qe7 {[%emt 0:04:20]} 6. Nxc6 {[%emt 0:04:21]} dxc6 {[%emt 0:00:17]} 7. d3 {[%emt 0:05:49]} Ng4 {[%emt 0:19:25]} 8. d4 {[%emt 0:01:09]} Qf6 {[%emt 0:00:17]} 9. Be3 {[%emt 0:00:46]} Nxe3 {[%emt 0:00:19]} 10. fxe3 {[%emt 1:16:41]} Be7 {[%emt 0:00:15]} 11. Qf3 {[%emt 0:00:00]} Qh4+ {[%emt 0:08:24]} 12. g3 {[%emt 0:00:00]} Qh6 {[%emt 0:04:59]} 13. Bd3 {[%emt 0:00:00]} Be6 {[%emt 0:08:25]} 14. O-O {[%emt 0:00:00]} O-O-O {[%emt 0:04:23]} 15. Rf2 {[%emt 0:00:00]} Kb8 {[%emt 0:03:10]} 16. Bf1 {[%emt 0:00:00]} g5 {[%emt 0:01:41]} 17. e5 {[%emt 0:03:30]} g4 {[%emt 0:03:18]} 18. Qe4 {[%emt 0:00:00]} Qg7 {[%emt 0:01:14]} 19. b4 {[%emt 0:00:00]} h5 {[%emt 0:07:38]} 20. b5 {[%emt 0:00:00]} h4 {[%emt 0:03:10]} 21. bxc6 {[%emt 0:00:00]} hxg3 {[%emt 0:00:39]} 22. hxg3 {[%emt 0:00:00]} Qh6 {[%emt 0:03:47]} 23. Rb1 {[%emt 0:00:00]} b6 {[%emt 0:01:12]} 24. Rbb2 {[%emt 0:00:00]} Bg5 {[%emt 0:03:14]} 25. Bg2 {[%emt 0:01:16]} Bxe3 {[%emt 0:07:01]} 26. d5 {[%emt 0:00:14]} Bc5 {[%emt 0:04:05]} 27. Kf1 {[%emt 0:00:34]} Bf5 {[%emt 0:00:18]} 28. Qf4 {[%emt 0:01:36]} Bd3+ {[%emt 0:01:05]} 29. Ke1 {[%emt 0:00:01]} Qg7 {[%emt 0:04:07]} 30. Rfd2 {[%emt 0:00:22]} Qh7 {[%emt 0:01:09]} 31. Ne2 {[%emt 0:01:50]} Qh2 {[%emt 0:02:42]} 32. Rxd3 {[%emt 0:00:26]} Qxg2 {[%emt 0:00:06]} 33. Kd2 {[%emt 0:00:21]} Rde8 {[%emt 0:00:53]} 34. Kc3 {[%emt 0:00:23]} Qh1 {[%emt 0:00:00]} 35. Kb3 {[%emt 0:00:06]} Qe1 {[%emt 0:00:58]} 36. a3 {[%emt 0:01:44]} Qa1 {[%emt 0:00:47]} 37. Qxg4 {[%emt 0:00:27]} Qxa3+ {[%emt 0:00:47]} 38. Kc2 {[%emt 0:00:01]} Qa4+ {[%emt 0:00:01]} 39. Kd2 {[%emt 0:00:24]} Rxe5 {[%emt 0:00:11]} 40. d6 {[%emt 0:00:26]} Bb4+ {[%emt 0:01:38]} 41. Rxb4 {[%emt 0:00:01]} Qxb4+ {[%emt 0:00:21]} 42. Kc2 {[%emt 0:00:28]} Qa4+ {[%emt 0:00:29]} 43. Kb2 {[%emt 0:00:19]} Rb5+ {[%emt 0:00:55]} 44. Kc1 {[%emt 0:00:39]} Qa1+ {[%emt 0:00:34]} 45. Kd2 {[%emt 0:00:02]} Rb2+ {[%emt 0:00:13]} 46. Ke3 {[%emt 0:00:20]} Rxe2+ {[%emt 0:00:52]} 47. Kxe2 {[%emt 0:00:45]} Rh2+ {[%emt 0:00:24]} 48. Kf3 {[%emt 0:00:38]} Qf1+ {[%emt 0:00:20]} 49. Ke3 {[%emt 0:00:16]} Qe1+ {[%emt 0:00:41]} 50. Kd4 {[%emt 0:00:31]} cxd6 {[%emt 0:00:35]} 51. Qg8+ {[%emt 0:01:40]} Kc7 {[%emt 0:00:05]} 52. Qxf7+ {[%emt 0:00:04]} Kxc6 {[%emt 0:00:04]} 53. Qd5+ {[%emt 0:00:06]} Kc7 {[%emt 0:00:16]} 54. Qf7+ {[%emt 0:00:07]} Kc6 {[%emt 0:01:27]} 55. Qd5+ {[%emt 0:00:20]} 1/2-1/2

[Event "7th Sharjah Challengers 2024"]
[Site "Sharjah"]
[Date "2024.05.15"]
[Round "2.2"]
[White "Delgado Ramirez, Neuris"]
[Black "Laddha, Shubh Jayesh"]
[Result "1-0"]
[ECO "D11"]
[WhiteElo "2489"]
[BlackElo "2325"]
[Annotator "RC"]
[PlyCount "173"]
[EventDate "2024.05.13"]
[EventType "swiss"]
[EventCountry "UAE"]
[SourceTitle "playchess.com"]
[Source "ChessBase"]
[SourceQuality "1"]
[TimeControl "5400+30"]

1. d4 {[%emt 0:01:49]} d5 {[%emt 0:00:06]} 2. Nf3 {[%emt 0:01:55]} Nf6 {[%emt 0:00:06]} 3. e3 {[%emt 0:00:29]} c6 {[%emt 0:01:56]} 4. Bd3 {[%emt 0:01:10]} Bg4 {[%emt 0:02:59]} 5. c4 {[%emt 0:01:36]} e6 {[%emt 0:02:43]} 6. Nc3 {[%emt 0:05:16]} Nbd7 {[%emt 0:02:19]} 7. O-O {[%emt 0:02:31]} Be7 {[%emt 0:02:09]} 8. b3 {[%emt 0:01:11]} O-O {[%emt 0:02:24]} 9. h3 {[%emt 0:01:00]} Bh5 {[%emt 0:01:30]} 10. Bb2 {[%emt 0:04:24]} a5 {[%emt 0:06:10]} 11. Qc2 {[%emt 0:05:23]} Bg6 {[%emt 0:05:17]} 12. Rad1 {[%emt 0:01:04]} Bxd3 {[%emt 0:05:03]} 13. Qxd3 {[%emt 0:00:28]} Bb4 {[%emt 0:01:56]} 14. Nd2 {[%emt 0:03:46]} Qe7 {[%emt 0:06:11]} 15. e4 {[%emt 0:00:49]} Bxc3 {[%emt 0:06:43]} 16. Bxc3 {[%emt 0:00:40]} dxe4 {[%emt 0:02:34]} 17. Nxe4 {[%emt 0:00:09]} a4 {[%emt 0:01:48]} 18. Nxf6+ {[%emt 0:00:44]} Nxf6 {[%emt 0:00:40]} 19. Rfe1 {[%emt 0:00:55]} Rfd8 {[%emt 0:05:15]} 20. Qf3 {[%emt 0:01:05]} axb3 {[%emt 0:11:07]} 21. axb3 {[%emt 0:01:10]} Qd6 {[%emt 0:09:27]} 22. Re3 {[%emt 0:04:55]} Nd7 {[%emt 0:05:04]} 23. Qg4 {[%emt 0:06:42]} Nf6 {[%emt 0:03:38]} 24. Qe2 {[%emt 0:00:55]} b5 {[%emt 0:02:57]} 25. d5 {[%emt 0:02:38]} exd5 {[%emt 0:01:22]} 26. Be5 {[%emt 0:01:01]} Qe7 {[%emt 0:01:14]} 27. cxb5 {[%emt 0:00:50]} cxb5 {[%emt 0:01:39]} 28. Qxb5 {[%emt 0:00:44]} h6 {[%emt 0:02:38]} 29. Bd4 {[%emt 0:03:38]} Qd7 {[%emt 0:01:15]} 30. Qd3 {[%emt 0:01:02]} Ne4 {[%emt 0:02:46]} 31. Bb2 {[%emt 0:03:55]} Nc5 {[%emt 0:01:45]} 32. Qd2 {[%emt 0:00:51]} Ne6 {[%emt 0:00:41]} 33. Rg3 {[%emt 0:00:15]} Qd6 {[%emt 0:01:55]} 34. Rg4 {[%emt 0:00:43]} f5 {[%emt 0:01:10]} 35. Rg3 {[%emt 0:00:39]} Kh7 {[%emt 0:00:52]} 36. Qc2 {[%emt 0:01:12]} g6 {[%emt 0:00:37]} 37. Rgd3 {[%emt 0:00:44]} Rac8 {[%emt 0:00:26]} 38. Qd2 {[%emt 0:00:39]} d4 {[%emt 0:00:31]} 39. h4 {[%emt 0:02:12]} Qf4 {[%emt 0:00:31]} 40. Qa5 {[%emt 0:03:19]} Rc2 {[%emt 0:00:34]} 41. Rf3 {[%emt 0:00:08]} Qc7 {[%emt 0:00:18]} 42. Qe1 {[%emt 0:01:53]} Rxb2 {[%emt 0:00:40]} 43. Qxe6 {[%emt 0:00:10]} Rd6 {[%emt 0:00:23]} 44. Qe5 {[%emt 0:03:31]} Rd7 {[%emt 0:00:07]} 45. Qb5 {[%emt 0:02:11]} Qb7 {[%emt 0:00:22]} 46. Qa4 {[%emt 0:00:53]} Qa7 {[%emt 0:00:35]} 47. Qb4 {[%emt 0:00:54]} d3 {[%emt 0:00:59]} 48. h5 {[%emt 0:00:21]} gxh5 {[%emt 0:00:23]} 49. Qb5 {[%emt 0:02:12]} Rf7 {[%emt 0:00:39]} 50. Qxd3 {[%emt 0:00:09]} Qc5 {[%emt 0:00:19]} 51. Rf4 {[%emt 0:02:12]} Qe5 {[%emt 0:00:28]} 52. g3 {[%emt 0:01:00]} Re2 {[%emt 0:00:45]} 53. Qf3 {[%emt 0:01:10]} Re1+ {[%emt 0:00:22]} 54. Rxe1 {[%emt 0:00:08]} Qxe1+ {[%emt 0:00:02]} 55. Kg2 {[%emt 0:00:06]} Kg6 {[%emt 0:00:22]} 56. Rh4 {[%emt 0:00:07]} Qe6 {[%emt 0:01:03]} 57. b4 {[%emt 0:00:52]} Kg7 {[%emt 0:00:18]} 58. Rxh5 {[%emt 0:00:16]} Qd6 {[%emt 0:00:51]} 59. Rh4 {[%emt 0:00:18]} Qe5 {[%emt 0:00:30]} 60. Qc6 {[%emt 0:00:41]} Rf6 {[%emt 0:00:22]} 61. Qd7+ {[%emt 0:00:15]} Kg6 {[%emt 0:00:22]} 62. Qd4 {[%emt 0:00:45]} Qe6 {[%emt 0:00:42]} 63. Qc4 {[%emt 0:00:24]} Qe8 {[%emt 0:00:36]} 64. Rd4 {[%emt 0:00:17]} Rc6 {[%emt 0:00:27]} 65. Qd5 {[%emt 0:00:38]} Rc2 {[%emt 0:00:33]} 66. Rf4 {[%emt 0:00:32]} Qc8 {[%emt 0:00:31]} 67. g4 {[%emt 0:01:01]} Kg7 {[%emt 0:00:31]} 68. Rxf5 {[%emt 0:00:39]} Qc7 {[%emt 0:00:31]} 69. Qd4+ {[%emt 0:00:38]} Kg8 {[%emt 0:00:23]} 70. Rc5 {[%emt 0:02:11]} Qb7+ {[%emt 0:00:30]} 71. Kg3 {[%emt 0:00:34]} Qb8+ {[%emt 0:00:25]} 72. Qe5 {[%emt 0:00:40]} Rc3+ {[%emt 0:00:38]} 73. f3 {[%emt 0:00:07]} Qxe5+ {[%emt 0:00:21]} 74. Rxe5 {[%emt 0:00:09]} Rb3 {[%emt 0:00:04]} 75. b5 {[%emt 0:00:15]} Kg7 {[%emt 0:00:04]} 76. Rf5 {[%emt 0:00:19]} Rb4 {[%emt 0:00:26]} 77. Kf2 {[%emt 0:00:33]} Kg6 {[%emt 0:00:07]} 78. Ke2 {[%emt 0:00:29]} Rb3 {[%emt 0:00:06]} 79. Kd2 {[%emt 0:01:21]} h5 {[%emt 0:00:15]} 80. Kc2 {[%emt 0:00:46]} Re3 {[%emt 0:00:17]} 81. Rxh5 {[%emt 0:00:41]} Rxf3 {[%emt 0:00:05]} 82. Rf5 {[%emt 0:00:44]} Rg3 {[%emt 0:00:26]} 83. Rf4 {[%emt 0:00:06]} Kg5 {[%emt 0:00:12]} 84. Rb4 {[%emt 0:00:09]} Re3 {[%emt 0:00:11]} 85. b6 {[%emt 0:00:08]} Re8 {[%emt 0:00:04]} 86. b7 {[%emt 0:00:28]} Rb8 {[%emt 0:00:02]} 87. Kb3 {[%emt 0:00:08]} 1-0

[Event "7th Sharjah Challengers 2024"]
[Site "Sharjah"]
[Date "2024.05.15"]
[Round "2.3"]
[White "Ezat, Mohamed"]
[Black "Burmakin, Vladimir"]
[Result "1/2-1/2"]
[ECO "D35"]
[WhiteElo "2342"]
[BlackElo "2483"]
[Annotator "TA"]
[PlyCount "53"]
[EventDate "2024.05.13"]
[EventType "swiss"]
[EventCountry "UAE"]
[SourceTitle "playchess.com"]
[Source "ChessBase"]
[SourceQuality "1"]
[TimeControl "5400+30"]

{[%evp 10,53,4,0,12,14,9,-4,20,25,43,35,39,8,21,15,43,40,35,33,31,29,207,236,251,120,256,114,121,6,118,92,86,88,114,104,91,4,81,68,76,70,29987,-545,-515,-1534]} 1. d4 {[%emt 0:00:05]} d5 {[%emt 0:00:12]} 2. c4 {[%emt 0:00:10]} e6 {[%emt 0:00:09]} 3. Nc3 {[%emt 0:00:11]} c6 {[%emt 0:01:01]} 4. Nf3 {[%emt 0:19:26]} Nf6 {[%emt 0:00:36]} 5. cxd5 {[%emt 0:08:40]} exd5 {[%emt 0:01:10]} 6. Qc2 {[%emt 0:00:49]} Nbd7 {[%emt 0:10:32]} 7. Bg5 {[%emt 0:00:38]} Qa5 {[%emt 0:00:11]} 8. Nd2 {[%emt 0:02:29] Inhibits Ne4.} Be7 {[%emt 0:07:57] The position is equal.} 9. e3 {[%emt 0:00:29]} h6 {[%emt 0:01:41]} 10. Bh4 {[%emt 0:02:52]} O-O {[%emt 0:02:06]} 11. g4 {[%emt 0:06:38]} Re8 {[%emt 0:00:40]} 12. Rg1 {[%emt 0:00:14]} Ne4 {[%emt 0:13:06]} 13. Bxe7 {[%emt 0:16:11]} Rxe7 {[%emt 0:01:01]} 14. Ndxe4 {[%emt 0:06:06]} dxe4 {[%emt 0:00:01]} 15. h4 {[%emt 0:00:25]} g5 $2 {[%emt 0:11:43]} (15... Nb6 $11) 16. hxg5 $18 {[%emt 0:04:54]} hxg5 {[%emt 0:00:02]} 17. Bc4 {[%emt 0:04:11]} (17. O-O-O $1 $18 {is the precise move to win.}) 17... Kg7 {[%emt 0:08:48] [#]} (17... Nf6 $16) 18. O-O-O {[%emt 0:01:58]} (18. Rh1 $1 $18 {and the rest is easy.} Nf6 19. f4 Bxg4 (19... exf3 $2 20. Qh2 $18) 20. Qh2) 18... Nf6 $16 {[%emt 0:00:10][%cal Oa5b4]} 19. d5 {[%emt 0:07:00]} ({White should play} 19. f4 $16 Be6 (19... Nxg4 $2 20. d5 $18) (19... exf3 20. e4 $16) (19... Bxg4 $2 20. Be2 $18) 20. Nxe4 Bxc4 21. Nxf6 (21. Nxg5 $2 Qxa2 22. b3 Qxb3 $19) 21... Kxf6 22. d5 Bxd5 23. Qf5+ Kg7 24. Qxg5+ Kf8 25. Qh6+ Ke8 26. Qh8+ Kd7 27. Qxa8) 19... b5 {[%emt 0:05:49]} (19... Bxg4 $6 20. Be2 Bf5 21. Rxg5+ Bg6 22. Rdg1 cxd5 23. f4 $16) (19... Bd7 $11 {keeps the balance.}) 20. d6 $36 {[%emt 0:05:43][%mdl 2048] White has strong initiative.} Re8 {[%emt 0:12:21] [#]} 21. Bb3 {[%emt 0:02:00][%cal Oc3e4] aiming for Nxe4!} Bd7 {[%emt 0:00:19][%cal Oa8d8]} 22. Kb1 {[%emt 0:03:11]} Qb6 {[%emt 0:00:59][%cal Ob6c5]} 23. Rd4 {[%emt 0:03:11]} ({Better is} 23. Ne2 $16) 23... Qc5 {[%emt 0:03:57]} (23... c5 $11 24. Rd5 Nxd5 25. Bxd5 Rad8 26. Nxe4 (26. Bxe4 $2 Qxd6 27. Ne2 Kf8 $19) 26... Rxe4 27. Bxe4 Qxd6) 24. Nxe4 {[%emt 0:01:53]} Nxe4 {[%emt 0:02:08]} 25. Rxe4 {[%emt 0:00:04]} Qc4 {[%emt 0:16:21][%mdl 8192]} 26. Qc3+ $4 {[%mdl 8192]} (26. Bxc4 bxc4 27. Rxe8 (27. Rxc4 Rh8 $18) 27... Rxe8 28. Rh1 (28. Qxc4 a5 $18) (28. Qc3+ f6 $18) 28... Bxg4 29. Rh7+ (29. Qxc4 Bf5+ 30. Ka1 Bd7 $18) (29. Qh7+ Kf6 30. Rh6+ Ke5 31. Qg7+ Kf5 32. d7 Ke4 33. Qd4+ Kf3 34. Qd1+ Kxf2) 29... Kf6 30. Rh6+ (30. Qxc4 Bf5+ 31. Kc1 Bxh7 $18) 30... Ke5 31. Qc3+ (31. Qxc4 Bf5+ 32. Kc1 Bg6 $18) 31... Ke4 32. Qxc4+ Kf3 33. Rf6+ (33. Qxc6+ Ke2 34. Qc4+ Kf3 35. Rf6+ Bf5+ 36. Rxf5+ Kg2 37. Rxg5+ Kf3 38. Qg4+ Kxf2) 33... Bf5+ 34. Rxf5+ Kg2 35. Rxg5+ Kf3 36. Qg4+ (36. Qxf7+ Ke2 37. Qxe8 Kf1 38. d7 Ke1 39. d8=Q a6 40. Qxc6 Kf1 41. Qd1+ Kxf2 42. Qcf3#) 36... Kxf2 37. Qf4+ Ke1 38. Rg2 (38. Qxf7 Kd2 39. Qxe8 Kd3 40. d7 Ke2 41. d8=Q Ke1 42. Rg1+ Kf2 43. Qd1 c5 44. Qf1#) 38... Rf8 39. Qh4+ Kf1 40. Qh1#) 26... Qxc3 $19 {[%emt 0:00:00]} 27. Bc2 {[%emt 0:00:31][%mdl 32768] Against Qd3.   Weighted Error Value: White=0.60/Black=0.77.  Loses game:     	---       	Black=2      Missed win:     	White=1     	---        Mistake:       	White=4     	Black=3      Inaccurate:     	White=1     	Black=1      OK:         	White=8     	Black=2      Best:        	White=1     	Black=2     . An unexpected result.} (27. Rxe8 $142 Qxb3 (27... Qd3+ $2 28. Bc2 $19) 28. axb3 Rxe8 (28... Bxe8 $2 29. Kc2 $19) 29. Kc2) 1/2-1/2

[Event "7th Sharjah Challengers 2024"]
[Site "Sharjah"]
[Date "2024.05.15"]
[Round "2.4"]
[White "Farahat, Ali"]
[Black "Movahed, Sina"]
[Result "1-0"]
[ECO "D05"]
[WhiteElo "2327"]
[BlackElo "2464"]
[Annotator "TA"]
[PlyCount "73"]
[EventDate "2024.05.13"]
[EventType "swiss"]
[EventCountry "UAE"]
[SourceTitle "playchess.com"]
[Source "ChessBase"]
[SourceQuality "1"]
[TimeControl "5400+30"]

{[%evp 19,73,0,65,66,92,100,91,95,88,93,100,90,89,80,85,83,90,91,98,100,94,92,103,79,153,153,319,310,316,312,305,300,299,230,207,196,214,204,255,285,266,204,356,354,395,395,447,432,474,469,572,566,585,582,914,760]} 1. d4 {[%emt 0:00:06]} Nf6 {[%emt 0:00:09]} 2. Nf3 {[%emt 0:00:09]} d5 {[%emt 0:00:28]} 3. e3 {[%emt 0:00:58]} e6 {[%emt 0:00:31]} 4. Bd3 {[%emt 0:00:18]} b6 {[%emt 0:00:16]} 5. O-O {[%emt 0:01:25]} Bb7 {[%emt 0:00:07]} 6. b3 {[%emt 0:02:21]} Bd6 {[%emt 0:00:31]} 7. Bb2 {[%emt 0:00:20]} O-O {[%emt 0:00:15]} 8. Nbd2 {[%emt 0:01:52]} Nbd7 {[%emt 0:00:47]} 9. Ne5 {[%emt 0:01:09]} c5 {[%emt 0:02:52]} 10. f4 {[%emt 0:02:55]} Qc7 {[%emt 0:16:10]} (10... cxd4 $11 11. exd4 Ne4) 11. Nxd7 $14 {[%emt 0:08:03]} Qxd7 {[%emt 0:05:39] [#]} 12. dxc5 $1 {[%emt 0:01:30]} Be7 {[%emt 0:00:49]} 13. cxb6 {[%emt 0:00:44] White is better.} axb6 {[%emt 0:00:10]} 14. Nf3 {[%emt 0:04:54]} Qc7 {[%emt 0:11:06]} 15. Be5 {[%emt 0:07:36]} Qd8 {[%emt 0:10:24]} 16. Bd4 {[%emt 0:11:47] White is more active.} Ne4 {[%emt 0:04:29]} 17. Qe2 {[%emt 0:02:49]} Qc7 {[%emt 0:03:56]} 18. Nd2 {[%emt 0:03:47]} Nxd2 {[%emt 0:09:47]} 19. Qxd2 {[%emt 0:01:25]} f6 {[%emt 0:00:23]} 20. Qe2 {[%emt 0:08:00]} Bc5 {[%emt 0:05:35]} 21. c4 {[%emt 0:03:54]} Rae8 {[%emt 0:01:02]} (21... Bxd4 $142 22. exd4 Rfe8) 22. Qc2 $16 {[%emt 0:02:29]} e5 $2 {[%emt 0:05:19] Loses the game.} (22... g6 $16 23. cxd5 Bxd5 24. Bxc5 Qxc5) 23. Bxh7+ {[%emt 0:08:14]} Kh8 {[%emt 0:00:02]} 24. Bxc5 {[%emt 0:01:44]} Qxc5 {[%emt 0:00:02]} 25. Bg6 {[%emt 0:01:13]} Qxe3+ {[%emt 0:03:41]} 26. Kh1 {[%emt 0:00:07] [#] White threatens Qf5 and mate.} exf4 {[%emt 0:04:59]} 27. Bxe8 $40 {[%emt 0:01:47][%mdl 128] White goes for the king.} Rxe8 {[%emt 0:00:03]} 28. Qf2 {[%emt 0:00:38]} Re4 {[%emt 0:04:44]} 29. cxd5 {[%emt 0:02:00]} Bxd5 {[%emt 0:00:29]} 30. Rad1 {[%emt 0:01:24]} Qxf2 {[%emt 0:03:46]} (30... Re5 {might work better.} 31. Qxe3 (31. Qxf4 Bxg2+ 32. Kxg2 Rg5+ 33. Kh1 Rg1+ 34. Rxg1 Qxf4 $11) 31... fxe3) 31. Rxf2 $18 {[%emt 0:20:22][%mdl 4096] Endgame. KRR-KRB} g5 {[%emt 0:00:32]} 32. Kg1 {[%emt 0:00:00]} (32. Rxd5 $2 {gets mated.} Re1+) 32... Re5 {[%emt 0:01:00]} 33. Rfd2 {[%emt 0:00:00] White is clearly winning.} Be6 {[%emt 0:00:16]} 34. Kf2 {[%emt 0:00:00]} Ra5 {[%emt 0:00:15]} 35. Re1 {[%emt 0:00:00]} Bd5 {[%emt 0:01:06]} 36. Re7 {[%emt 0:00:00]} Kg8 {[%emt 0:00:21]} 37. b4 {[%emt 0:00:00] Weighted Error Value: White=0.09 (flawless) /Black=0.40.  Loses game:     	---       	Black=1      Mistake:       	---       	Black=2      Inaccurate:     	---       	Black=2      OK:         	White=12    	Black=3      Best:        	---       	Black=3      Strong:       	White=1     	---} 1-0

[Event "7th Sharjah Challengers 2024"]
[Site "Sharjah"]
[Date "2024.05.15"]
[Round "2.5"]
[White "Nitish Belurkar"]
[Black "Kanyamarala, Tarun"]
[Result "1/2-1/2"]
[ECO "A13"]
[WhiteElo "2451"]
[BlackElo "2302"]
[Annotator "RC"]
[PlyCount "121"]
[EventDate "2024.05.13"]
[EventType "swiss"]
[EventCountry "UAE"]
[SourceTitle "playchess.com"]
[Source "ChessBase"]
[SourceQuality "1"]
[TimeControl "5400+30"]

1. c4 {[%emt 0:00:04]} e6 {[%emt 0:00:42]} 2. g3 {[%emt 0:00:29]} d5 {[%emt 0:00:45]} 3. Bg2 {[%emt 0:00:05]} Nf6 {[%emt 0:00:10]} 4. Nf3 {[%emt 0:00:23]} d4 {[%emt 0:01:41]} 5. O-O {[%emt 0:00:20]} c5 {[%emt 0:01:22]} 6. e3 {[%emt 0:00:53]} Nc6 {[%emt 0:00:16]} 7. exd4 {[%emt 0:00:13]} cxd4 {[%emt 0:00:09]} 8. d3 {[%emt 0:00:05]} Bd6 {[%emt 0:01:26]} 9. Bg5 {[%emt 0:00:32]} h6 {[%emt 0:01:13]} 10. Bxf6 {[%emt 0:00:06]} Qxf6 {[%emt 0:00:05]} 11. Nbd2 {[%emt 0:00:16]} O-O {[%emt 0:01:23]} 12. Ne4 {[%emt 0:04:47]} Qe7 {[%emt 0:00:34]} 13. Nxd6 {[%emt 0:00:13]} Qxd6 {[%emt 0:00:11]} 14. Nd2 {[%emt 0:09:14]} b6 {[%emt 0:07:16]} 15. b4 {[%emt 0:04:54]} Rb8 {[%emt 0:07:06]} 16. a3 {[%emt 0:06:00]} a5 {[%emt 0:04:29]} 17. b5 {[%emt 0:19:13]} Ne5 {[%emt 0:02:43]} 18. Qc2 {[%emt 0:00:46]} Bb7 {[%emt 0:04:27]} 19. Bxb7 {[%emt 0:00:18]} Rxb7 {[%emt 0:00:07]} 20. a4 {[%emt 0:00:02]} Qb4 {[%emt 0:14:22]} 21. Nb3 {[%emt 0:10:00]} Rd8 {[%emt 0:05:18]} 22. Rfc1 {[%emt 0:00:19]} Rc7 {[%emt 0:03:48]} 23. Kg2 {[%emt 0:02:39]} Qd6 {[%emt 0:15:08]} 24. Re1 {[%emt 0:04:23]} Nd7 {[%emt 0:00:42]} 25. Qd2 {[%emt 0:01:47]} Nc5 {[%emt 0:03:54]} 26. Nxc5 {[%emt 0:00:15]} Rxc5 {[%emt 0:01:00]} 27. Re2 {[%emt 0:00:34]} Re5 {[%emt 0:05:56]} 28. Rxe5 {[%emt 0:00:10]} Qxe5 {[%emt 0:00:04]} 29. Re1 {[%emt 0:00:17]} Qd6 {[%emt 0:00:17]} 30. f4 {[%emt 0:04:47]} Qa3 {[%emt 0:01:17]} 31. Qd1 {[%emt 0:01:25]} Rc8 {[%emt 0:01:08]} 32. Re5 {[%emt 0:01:01]} Qa2+ {[%emt 0:02:20]} 33. Re2 {[%emt 0:01:02]} Qa3 {[%emt 0:00:15]} 34. Re5 {[%emt 0:00:04]} Qa2+ {[%emt 0:05:22]} 35. Kh3 {[%emt 0:03:09]} Qf2 {[%emt 0:04:40]} 36. Qe2 {[%emt 0:07:51]} Qxe2 {[%emt 0:00:32]} 37. Rxe2 {[%emt 0:00:02]} Kf8 {[%emt 0:00:32]} 38. Re4 {[%emt 0:00:19]} Rd8 {[%emt 0:00:35]} 39. g4 {[%emt 0:00:27]} Ke7 {[%emt 0:01:03]} 40. Kg3 {[%emt 0:00:09]} g5 {[%emt 0:02:07]} 41. Kf3 {[%emt 0:12:39]} f6 {[%emt 0:02:58]} 42. h3 {[%emt 0:00:19]} Rd7 {[%emt 0:00:15]} 43. Kg3 {[%emt 0:00:44]} Rd8 {[%emt 0:00:17]} 44. Kf3 {[%emt 0:01:38]} Rd7 {[%emt 0:00:14]} 45. Ke2 {[%emt 0:01:45]} Rd8 {[%emt 0:00:45]} 46. Kf2 {[%emt 0:03:31]} Rd7 {[%emt 0:00:14]} 47. Kg3 {[%emt 0:00:35]} Rd8 {[%emt 0:00:08]} 48. Kf2 {[%emt 0:01:19]} Rd7 {[%emt 0:00:03]} 49. Ke2 {[%emt 0:00:09]} Rd8 {[%emt 0:00:03]} 50. Kd2 {[%emt 0:00:43]} Rd7 {[%emt 0:00:07]} 51. Kc2 {[%emt 0:01:14]} Rd8 {[%emt 0:00:18]} 52. Kb3 {[%emt 0:00:16]} gxf4 {[%emt 0:02:30]} 53. Rxf4 {[%emt 0:00:03]} e5 {[%emt 0:00:20]} 54. Rf5 {[%emt 0:00:12]} Rc8 {[%emt 0:02:09]} 55. Rh5 {[%emt 0:00:13]} Rh8 {[%emt 0:00:15]} 56. Rf5 {[%emt 0:00:38]} Rc8 {[%emt 0:00:04]} 57. Kc2 {[%emt 0:01:54]} Rf8 {[%emt 0:01:09]} 58. Rh5 {[%emt 0:00:06]} Rh8 {[%emt 0:00:06]} 59. Rf5 {[%emt 0:00:20]} Rf8 {[%emt 0:00:01]} 60. Rh5 {[%emt 0:00:32]} Rh8 {[%emt 0:00:01]} 61. Rf5 {[%emt 0:00:51]} 1/2-1/2